[Event "Titled Tuesday Blitz May 9 Early 2023"]
[White "ElenGajger"]
[Black "Maghsoodloo, Parham"]
[BlackFideId "12539929"]
[WhiteElo "2480"]
[BlackElo "2655"]
[Result "0-1"]
[Round "01"]
[TimeControl "180+2"]
[Date "2023.05.09"]
[WhiteClock "0:00:16"]
[BlackClock "0:00:05"]

1. e4 {[%clk 0:03:00]}  c5 {[%clk 0:02:59]} 2. Nc3 {[%clk 0:03:00]}  Nc6 {[%clk 0:02:58]} 3. Bb5 {[%clk 0:03:01]}  Nd4 {[%clk 0:02:57]} 4. Bc4 {[%clk 0:03:01]}  d6 {[%clk 0:02:54]} 5. Nf3 {[%clk 0:03:01]}  Nf6 {[%clk 0:02:53]} 6. O-O {[%clk 0:03:00]}  a6 {[%clk 0:02:45]} 7. Nxd4 {[%clk 0:02:56]}  cxd4 {[%clk 0:02:44]} 8. Ne2 {[%clk 0:02:57]}  e5 {[%clk 0:02:42]} 9. d3 {[%clk 0:02:55]}  Be7 {[%clk 0:02:40]} 10. c3 {[%clk 0:02:51]}  dxc3 {[%clk 0:02:40]} 11. Nxc3 {[%clk 0:02:51]}  b5 {[%clk 0:02:38]} 12. Bb3 {[%clk 0:02:51]}  Be6 {[%clk 0:02:37]} 13. Bxe6 {[%clk 0:02:48]}  fxe6 {[%clk 0:02:37]} 14. d4 {[%clk 0:02:48]}  exd4 {[%clk 0:02:33]} 15. Qxd4 {[%clk 0:02:48]}  O-O {[%clk 0:02:30]} 16. a4 {[%clk 0:02:45]}  Qd7 {[%clk 0:02:11]} 17. h3 {[%clk 0:02:44]}  e5 {[%clk 0:01:42]} 18. Qd3 {[%clk 0:02:41]}  Rab8 {[%clk 0:01:41]} 19. axb5 {[%clk 0:02:40]}  axb5 {[%clk 0:01:42]} 20. Be3 {[%clk 0:02:37]}  Qc6 {[%clk 0:01:29]} 21. Ra7 {[%clk 0:02:31]}  Rfe8 {[%clk 0:01:18]} 22. Bg5 {[%clk 0:02:06]}  Nd7 {[%clk 0:01:17]} 23. Bxe7 {[%clk 0:02:04]}  Rxe7 {[%clk 0:01:18]} 24. Nd5 {[%clk 0:02:04]}  Rf7 {[%clk 0:01:18]} 25. Rfa1 {[%clk 0:01:50]}  Nc5 {[%clk 0:01:15]} 26. Qc2 {[%clk 0:01:42]}  Qe8 {[%clk 0:01:09]} 27. b4 {[%clk 0:01:30]}  Ne6 {[%clk 0:01:09]} 28. Rxf7 {[%clk 0:01:24]}  Qxf7 {[%clk 0:01:09]} 29. Qc6 {[%clk 0:01:24]}  Qf8 {[%clk 0:00:22]} 30. Ra7 {[%clk 0:01:19]}  Kh8 {[%clk 0:00:21]} 31. Rd7 {[%clk 0:01:02]}  Nd4 {[%clk 0:00:16]} 32. Qxd6 {[%clk 0:00:59]}  Qxd6 {[%clk 0:00:14]} 33. Rxd6 {[%clk 0:01:00]}  h5 {[%clk 0:00:13]} 34. Ne7 {[%clk 0:00:48]}  Kh7 {[%clk 0:00:12]} 35. Nf5 {[%clk 0:00:39]}  Nc2 {[%clk 0:00:10]} 36. Rd7 {[%clk 0:00:37]}  Nxb4 {[%clk 0:00:09]} 37. Rxg7+ {[%clk 0:00:37]}  Kh8 {[%clk 0:00:10]} 38. Re7 {[%clk 0:00:32]}  Nd3 {[%clk 0:00:09]} 39. Rd7 {[%clk 0:00:32]}  Nc5 {[%clk 0:00:09]} 40. Rd5 {[%clk 0:00:31]}  Nxe4 {[%clk 0:00:09]} 41. Rxe5 {[%clk 0:00:31]}  Nc3 {[%clk 0:00:10]} 42. Nd4 {[%clk 0:00:30]}  b4 {[%clk 0:00:10]} 43. Nb3 {[%clk 0:00:30]}  Kg7 {[%clk 0:00:08]} 44. Rxh5 {[%clk 0:00:30]}  Ra8 {[%clk 0:00:08]} 45. Rh4 {[%clk 0:00:29]}  Na2 {[%clk 0:00:06]} 46. Rg4+ {[%clk 0:00:26]}  Kf6 {[%clk 0:00:06]} 47. Nc5 {[%clk 0:00:26]}  Ra3 {[%clk 0:00:06]} 48. h4 {[%clk 0:00:25]}  Kf5 {[%clk 0:00:02]} 49. f3 {[%clk 0:00:25]}  Rc3 {[%clk 0:00:02]} 50. Ne4 {[%clk 0:00:24]}  Rc1+ {[%clk 0:00:02]} 51. Kh2 {[%clk 0:00:24]}  b3 {[%clk 0:00:03]} 52. Nd2 {[%clk 0:00:23]}  b2 {[%clk 0:00:03]} 53. Rg5+ {[%clk 0:00:21]}  Ke6 {[%clk 0:00:03]} 54. Rb5 {[%clk 0:00:21]}  Rc2 {[%clk 0:00:03]} 55. Nc4 {[%clk 0:00:17]}  Rxc4 {[%clk 0:00:03]} 56. Rxb2 {[%clk 0:00:17]}  Rxh4+ {[%clk 0:00:04]} 57. Kg3 {[%clk 0:00:17]}  Ra4 {[%clk 0:00:04]} 58. Rb6+ {[%clk 0:00:17]}  Ke7 {[%clk 0:00:04]} 59. Rb5 {[%clk 0:00:18]}  Nc3 {[%clk 0:00:04]} 60. Re5+ {[%clk 0:00:18]}  Kf6 {[%clk 0:00:04]} 61. Rc5 {[%clk 0:00:17]}  Ne2+ {[%clk 0:00:04]} 62. Kf2 {[%clk 0:00:17]}  Nf4 {[%clk 0:00:05]} 63. Rc6+ {[%clk 0:00:17]}  Ke5 {[%clk 0:00:05]} 64. Rc8 {[%clk 0:00:17]}  Ra2+ {[%clk 0:00:05]} 65. Ke3 {[%clk 0:00:16]}  Re2# {[%clk 0:00:05]} 0-1


[Site "https://www.chess.com"]

[Event "Titled Tuesday Blitz May 9 Early 2023"]
[White "demon64fields"]
[Black "KorolDimitriy75"]
[WhiteElo "2898"]
[BlackElo "2463"]
[Result "1/2-1/2"]
[Round "01"]
[TimeControl "180+2"]
[Date "2023.05.09"]
[WhiteClock "0:00:17"]
[BlackClock "0:00:14"]

1. Nf3 {[%clk 0:02:59]}  c5 {[%clk 0:03:00]} 2. g3 {[%clk 0:03:00]}  g6 {[%clk 0:03:00]} 3. Bg2 {[%clk 0:03:01]}  Bg7 {[%clk 0:03:00]} 4. O-O {[%clk 0:03:01]}  Nc6 {[%clk 0:03:01]} 5. c4 {[%clk 0:03:01]}  Nh6 {[%clk 0:03:00]} 6. Nc3 {[%clk 0:03:01]}  Nf5 {[%clk 0:03:01]} 7. b3 {[%clk 0:03:02]}  a6 {[%clk 0:02:57]} 8. Bb2 {[%clk 0:03:01]}  Rb8 {[%clk 0:02:57]} 9. d3 {[%clk 0:03:01]}  d6 {[%clk 0:02:55]} 10. Qd2 {[%clk 0:03:02]}  Bd7 {[%clk 0:02:52]} 11. Nd5 {[%clk 0:03:01]}  e5 {[%clk 0:02:52]} 12. b4 {[%clk 0:02:51]}  b6 {[%clk 0:02:33]} 13. a4 {[%clk 0:02:48]}  a5 {[%clk 0:02:24]} 14. b5 {[%clk 0:02:47]}  Ncd4 {[%clk 0:02:13]} 15. Nxd4 {[%clk 0:02:39]}  exd4 {[%clk 0:02:11]} 16. e3 {[%clk 0:02:35]}  O-O {[%clk 0:02:08]} 17. Rae1 {[%clk 0:02:32]}  Re8 {[%clk 0:01:59]} 18. exd4 {[%clk 0:02:28]}  Nxd4 {[%clk 0:02:00]} 19. Qf4 {[%clk 0:02:13]}  Ne2+ {[%clk 0:01:35]} 20. Rxe2 {[%clk 0:02:13]}  Rxe2 {[%clk 0:01:36]} 21. Bf6 {[%clk 0:02:08]}  Bxf6 {[%clk 0:01:13]} 22. Nxf6+ {[%clk 0:02:09]}  Kg7 {[%clk 0:01:13]} 23. Ne4 {[%clk 0:02:00]}  Be6 {[%clk 0:00:49]} 24. Bf3 {[%clk 0:01:49]}  Ra2 {[%clk 0:00:45]} 25. Nxd6 {[%clk 0:01:45]}  Qf6 {[%clk 0:00:41]} 26. Qe3 {[%clk 0:01:41]}  Rxa4 {[%clk 0:00:27]} 27. Bc6 {[%clk 0:01:36]}  Qd4 {[%clk 0:00:23]} 28. Ne8+ {[%clk 0:01:33]}  Kh8 {[%clk 0:00:21]} 29. Qh6 {[%clk 0:01:22]}  Kg8 {[%clk 0:00:19]} 30. Nc7 {[%clk 0:01:08]}  Ra1 {[%clk 0:00:18]} 31. Rxa1 {[%clk 0:00:55]}  Qxa1+ {[%clk 0:00:19]} 32. Kg2 {[%clk 0:00:55]}  Qd4 {[%clk 0:00:18]} 33. Bd5 {[%clk 0:00:55]}  Bxd5+ {[%clk 0:00:17]} 34. Nxd5 {[%clk 0:00:56]}  Re8 {[%clk 0:00:16]} 35. Qg5 {[%clk 0:00:53]}  Re6 {[%clk 0:00:15]} 36. Qd8+ {[%clk 0:00:53]}  Kg7 {[%clk 0:00:15]} 37. Qc7 {[%clk 0:00:42]}  Qxd3 {[%clk 0:00:15]} 38. Nf4 {[%clk 0:00:39]}  Qe4+ {[%clk 0:00:14]} 39. Kh3 {[%clk 0:00:29]}  Qxc4 {[%clk 0:00:15]} 40. Nxe6+ {[%clk 0:00:20]}  Qxe6+ {[%clk 0:00:16]} 41. Kg2 {[%clk 0:00:20]}  a4 {[%clk 0:00:16]} 42. Qa7 {[%clk 0:00:20]}  Qe4+ {[%clk 0:00:14]} 43. Kh3 {[%clk 0:00:18]}  Qf5+ {[%clk 0:00:12]} 44. Kg2 {[%clk 0:00:18]}  Qd5+ {[%clk 0:00:13]} 45. Kh3 {[%clk 0:00:17]}  Qb3 {[%clk 0:00:13]} 46. Qxb6 {[%clk 0:00:17]}  a3 {[%clk 0:00:13]} 47. Qxc5 {[%clk 0:00:16]}  a2 {[%clk 0:00:13]} 48. Qd4+ {[%clk 0:00:15]}  Kg8 {[%clk 0:00:13]} 49. Qd8+ {[%clk 0:00:15]}  Kg7 {[%clk 0:00:14]} 50. Qd4+ {[%clk 0:00:16]}  Kg8 {[%clk 0:00:14]} 51. Qd8+ {[%clk 0:00:16]}  Kg7 {[%clk 0:00:14]} 52. Qd4+ {[%clk 0:00:17]} 1/2-1/2


[Site "https://www.chess.com"]

[Event "Titled Tuesday Blitz May 9 Early 2023"]
[White "Sjugirov, Sanan"]
[Black "Martic, Ivan"]
[WhiteFideId "4189302"]
[BlackFideId "929301"]
[WhiteElo "2569"]
[BlackElo "2360"]
[Result "1-0"]
[Round "01"]
[TimeControl "180+2"]
[Date "2023.05.09"]
[WhiteClock "0:01:43"]
[BlackClock "0:00:08"]

1. e4 {[%clk 0:03:00]}  c5 {[%clk 0:02:59]} 2. Nf3 {[%clk 0:03:00]}  Nf6 {[%clk 0:02:59]} 3. Nc3 {[%clk 0:02:55]}  d5 {[%clk 0:02:59]} 4. Bb5+ {[%clk 0:02:49]}  Bd7 {[%clk 0:02:56]} 5. e5 {[%clk 0:02:41]}  Bxb5 {[%clk 0:02:53]} 6. Nxb5 {[%clk 0:02:40]}  Nfd7 {[%clk 0:02:50]} 7. e6 {[%clk 0:02:39]}  fxe6 {[%clk 0:02:51]} 8. d4 {[%clk 0:02:33]}  a6 {[%clk 0:02:40]} 9. Nc3 {[%clk 0:02:32]}  Nc6 {[%clk 0:02:36]} 10. O-O {[%clk 0:02:31]}  Nxd4 {[%clk 0:02:07]} 11. Nxd4 {[%clk 0:02:32]}  cxd4 {[%clk 0:02:07]} 12. Qxd4 {[%clk 0:02:33]}  Nf6 {[%clk 0:01:58]} 13. Re1 {[%clk 0:02:32]}  Kf7 {[%clk 0:01:48]} 14. Bf4 {[%clk 0:02:21]}  Rc8 {[%clk 0:01:44]} 15. Be5 {[%clk 0:02:21]}  g6 {[%clk 0:01:40]} 16. Re2 {[%clk 0:02:21]}  Bg7 {[%clk 0:01:38]} 17. Rae1 {[%clk 0:02:22]}  Rc6 {[%clk 0:01:38]} 18. Re3 {[%clk 0:02:13]}  Rf8 {[%clk 0:01:19]} 19. Ne2 {[%clk 0:02:00]}  Rc4 {[%clk 0:00:48]} 20. Qd3 {[%clk 0:01:46]}  Ng4 {[%clk 0:00:36]} 21. Rf3+ {[%clk 0:01:46]}  Kg8 {[%clk 0:00:35]} 22. Bxg7 {[%clk 0:01:46]}  Kxg7 {[%clk 0:00:28]} 23. Nd4 {[%clk 0:01:45]}  Qa5 {[%clk 0:00:08]} 24. Nxe6+ {[%clk 0:01:43]}  Kh6 {[%clk 0:00:08]} 25. Rh3# {[%clk 0:01:43]} 1-0


[Site "https://www.chess.com"]

[Event "Titled Tuesday Blitz May 9 Early 2023"]
[White "Avazkhonov, Alikhon"]
[Black "Aravindh, Chithambaram VR."]
[WhiteFideId "14208504"]
[BlackFideId "5072786"]
[WhiteElo "1739"]
[BlackElo "2596"]
[Result "0-1"]
[Round "01"]
[TimeControl "180+2"]
[Date "2023.05.09"]
[WhiteClock "0:00:05"]
[BlackClock "0:00:50"]

1. d4 {[%clk 0:02:57]}  g6 {[%clk 0:02:59]} 2. e4 {[%clk 0:02:56]}  Bg7 {[%clk 0:02:59]} 3. Nc3 {[%clk 0:02:56]}  d5 {[%clk 0:02:58]} 4. Be3 {[%clk 0:02:56]}  dxe4 {[%clk 0:02:58]} 5. Nxe4 {[%clk 0:02:56]}  Nf6 {[%clk 0:02:58]} 6. Nxf6+ {[%clk 0:02:54]}  exf6 {[%clk 0:02:59]} 7. Nf3 {[%clk 0:02:55]}  O-O {[%clk 0:03:00]} 8. Qd2 {[%clk 0:02:55]}  Re8 {[%clk 0:02:58]} 9. O-O-O {[%clk 0:02:54]}  a5 {[%clk 0:02:56]} 10. Bh6 {[%clk 0:02:46]}  Nc6 {[%clk 0:02:54]} 11. h4 {[%clk 0:02:43]}  Bg4 {[%clk 0:02:53]} 12. Bxg7 {[%clk 0:01:54]}  Kxg7 {[%clk 0:02:53]} 13. h5 {[%clk 0:01:54]}  g5 {[%clk 0:02:47]} 14. Be2 {[%clk 0:01:29]}  h6 {[%clk 0:02:37]} 15. d5 {[%clk 0:01:23]}  Nb4 {[%clk 0:02:31]} 16. Rhe1 {[%clk 0:00:34]}  Nxa2+ {[%clk 0:02:01]} 17. Kb1 {[%clk 0:00:32]}  Nb4 {[%clk 0:02:02]} 18. Nd4 {[%clk 0:00:27]}  Qxd5 {[%clk 0:02:02]} 19. b3 {[%clk 0:00:19]}  Bxe2 {[%clk 0:01:29]} 20. Rxe2 {[%clk 0:00:19]}  c5 {[%clk 0:01:27]} 21. Nf3 {[%clk 0:00:15]}  Qxd2 {[%clk 0:01:27]} 22. Rexd2 {[%clk 0:00:11]}  a4 {[%clk 0:01:27]} 23. c3 {[%clk 0:00:10]}  Nc6 {[%clk 0:01:27]} 24. Rd7 {[%clk 0:00:10]}  axb3 {[%clk 0:01:21]} 25. Rxb7 {[%clk 0:00:10]}  Na5 {[%clk 0:01:22]} 26. Rb5 {[%clk 0:00:10]}  Nc4 {[%clk 0:01:09]} 27. Rxc5 {[%clk 0:00:06]}  b2 {[%clk 0:01:01]} 28. Rxc4 {[%clk 0:00:04]}  Ra1+ {[%clk 0:01:01]} 29. Kxb2 {[%clk 0:00:05]}  Rxd1 {[%clk 0:01:02]} 30. Nd4 {[%clk 0:00:05]}  Rd2+ {[%clk 0:01:02]} 31. Kb3 {[%clk 0:00:06]}  Rxf2 {[%clk 0:01:03]} 32. g4 {[%clk 0:00:06]}  Rb8+ {[%clk 0:00:59]} 33. Ka3 {[%clk 0:00:06]}  Rf1 {[%clk 0:00:53]} 34. Nf5+ {[%clk 0:00:06]}  Kh7 {[%clk 0:00:52]} 35. Ka2 {[%clk 0:00:06]}  Rf4 {[%clk 0:00:51]} 36. Rc7 {[%clk 0:00:05]}  Ra4# {[%clk 0:00:50]} 0-1


[Site "https://www.chess.com"]

[Event "Titled Tuesday Blitz May 9 Early 2023"]
[White "cristianserban1"]
[Black "Gurel, Ediz"]
[BlackFideId "44507356"]
[WhiteElo "2463"]
[BlackElo "2352"]
[Result "0-1"]
[Round "01"]
[TimeControl "180+2"]
[Date "2023.05.09"]
[WhiteClock "0:00:03"]
[BlackClock "0:00:30"]

1. d4 {[%clk 0:03:00]}  f5 {[%clk 0:02:56]} 2. c4 {[%clk 0:02:53]}  Nf6 {[%clk 0:02:56]} 3. g3 {[%clk 0:02:53]}  e6 {[%clk 0:02:56]} 4. Bg2 {[%clk 0:02:54]}  d5 {[%clk 0:02:55]} 5. Nh3 {[%clk 0:02:45]}  c6 {[%clk 0:02:51]} 6. O-O {[%clk 0:02:46]}  Be7 {[%clk 0:02:48]} 7. Nd2 {[%clk 0:02:44]}  O-O {[%clk 0:02:47]} 8. Nf3 {[%clk 0:02:42]}  Ne4 {[%clk 0:02:45]} 9. Ne5 {[%clk 0:02:38]}  Bf6 {[%clk 0:02:42]} 10. f3 {[%clk 0:02:06]}  Nd6 {[%clk 0:02:39]} 11. c5 {[%clk 0:01:34]}  Bxe5 {[%clk 0:02:24]} 12. dxe5 {[%clk 0:01:35]}  Nf7 {[%clk 0:02:24]} 13. Qd4 {[%clk 0:01:35]}  Nd7 {[%clk 0:02:16]} 14. f4 {[%clk 0:01:35]}  b6 {[%clk 0:02:15]} 15. b4 {[%clk 0:01:21]}  a5 {[%clk 0:02:12]} 16. cxb6 {[%clk 0:01:14]}  axb4 {[%clk 0:02:06]} 17. Qxb4 {[%clk 0:01:12]}  Qxb6+ {[%clk 0:01:39]} 18. Qxb6 {[%clk 0:01:11]}  Nxb6 {[%clk 0:01:40]} 19. Be3 {[%clk 0:01:12]}  Nc4 {[%clk 0:01:39]} 20. Bc5 {[%clk 0:01:12]}  Re8 {[%clk 0:01:32]} 21. Rfc1 {[%clk 0:01:09]}  Ba6 {[%clk 0:01:28]} 22. e3 {[%clk 0:01:09]}  Reb8 {[%clk 0:01:23]} 23. Bf1 {[%clk 0:00:57]}  Nd2 {[%clk 0:01:13]} 24. Bxa6 {[%clk 0:00:38]}  Rxa6 {[%clk 0:01:14]} 25. Nf2 {[%clk 0:00:32]}  Rba8 {[%clk 0:01:01]} 26. Nd3 {[%clk 0:00:16]}  Rxa2 {[%clk 0:00:55]} 27. Rxa2 {[%clk 0:00:17]}  Rxa2 {[%clk 0:00:55]} 28. Nb4 {[%clk 0:00:17]}  Nf3+ {[%clk 0:00:55]} 29. Kf1 {[%clk 0:00:16]}  Rxh2 {[%clk 0:00:55]} 30. Rc2 {[%clk 0:00:13]}  Rxc2 {[%clk 0:00:45]} 31. Nxc2 {[%clk 0:00:14]}  Nd2+ {[%clk 0:00:46]} 32. Ke2 {[%clk 0:00:14]}  Ne4 {[%clk 0:00:47]} 33. Ba3 {[%clk 0:00:11]}  c5 {[%clk 0:00:41]} 34. Kf3 {[%clk 0:00:11]}  h5 {[%clk 0:00:39]} 35. Ne1 {[%clk 0:00:10]}  Nd8 {[%clk 0:00:36]} 36. Nd3 {[%clk 0:00:09]}  c4 {[%clk 0:00:36]} 37. Ne1 {[%clk 0:00:09]}  Nc6 {[%clk 0:00:36]} 38. Nc2 {[%clk 0:00:09]}  g5 {[%clk 0:00:30]} 39. Bc5 {[%clk 0:00:06]}  g4+ {[%clk 0:00:29]} 40. Ke2 {[%clk 0:00:03]}  Nxc5 {[%clk 0:00:30]} 0-1


[Site "https://www.chess.com"]

[Event "Titled Tuesday Blitz May 9 Early 2023"]
[White "Quesada Perez, Yuniesky"]
[Black "Redzisz, Michal"]
[WhiteFideId "3504409"]
[BlackFideId "21816107"]
[WhiteElo "2585"]
[BlackElo "2175"]
[Result "1-0"]
[Round "01"]
[TimeControl "180+2"]
[Date "2023.05.09"]
[WhiteClock "0:01:00"]
[BlackClock "0:00:07"]

1. e4 {[%clk 0:02:58]}  c5 {[%clk 0:02:58]} 2. Nf3 {[%clk 0:02:57]}  e6 {[%clk 0:02:58]} 3. d4 {[%clk 0:02:57]}  cxd4 {[%clk 0:02:57]} 4. Nxd4 {[%clk 0:02:58]}  a6 {[%clk 0:02:57]} 5. Be2 {[%clk 0:02:57]}  Ne7 {[%clk 0:02:56]} 6. c4 {[%clk 0:02:55]}  Nbc6 {[%clk 0:02:56]} 7. Nc3 {[%clk 0:02:54]}  g6 {[%clk 0:02:56]} 8. Be3 {[%clk 0:02:53]}  Bg7 {[%clk 0:02:56]} 9. O-O {[%clk 0:02:53]}  O-O {[%clk 0:02:56]} 10. Qd2 {[%clk 0:02:53]}  f5 {[%clk 0:02:54]} 11. f4 {[%clk 0:02:41]}  fxe4 {[%clk 0:02:42]} 12. Nxe4 {[%clk 0:02:38]}  d5 {[%clk 0:02:42]} 13. Nxc6 {[%clk 0:02:21]}  Nxc6 {[%clk 0:01:57]} 14. Ng5 {[%clk 0:02:19]}  d4 {[%clk 0:01:14]} 15. Bf2 {[%clk 0:02:19]}  e5 {[%clk 0:01:09]} 16. c5 {[%clk 0:02:01]}  Bf6 {[%clk 0:00:24]} 17. Bc4+ {[%clk 0:01:56]}  Kg7 {[%clk 0:00:24]} 18. Ne4 {[%clk 0:01:48]}  Bf5 {[%clk 0:00:24]} 19. Nxf6 {[%clk 0:01:37]}  Qxf6 {[%clk 0:00:25]} 20. fxe5 {[%clk 0:01:32]}  Qxe5 {[%clk 0:00:26]} 21. b4 {[%clk 0:01:29]}  Rad8 {[%clk 0:00:21]} 22. Rae1 {[%clk 0:01:28]}  Qc7 {[%clk 0:00:19]} 23. Bg3 {[%clk 0:01:27]}  Qd7 {[%clk 0:00:15]} 24. Bd6 {[%clk 0:01:27]}  Rfe8 {[%clk 0:00:12]} 25. a4 {[%clk 0:01:26]}  Rxe1 {[%clk 0:00:10]} 26. Rxe1 {[%clk 0:01:27]}  Re8 {[%clk 0:00:11]} 27. Rxe8 {[%clk 0:01:21]}  Qxe8 {[%clk 0:00:12]} 28. b5 {[%clk 0:01:21]}  axb5 {[%clk 0:00:13]} 29. axb5 {[%clk 0:01:21]}  Na5 {[%clk 0:00:10]} 30. Qxd4+ {[%clk 0:01:15]}  Kh6 {[%clk 0:00:11]} 31. Bf4+ {[%clk 0:01:10]}  g5 {[%clk 0:00:11]} 32. Qf6+ {[%clk 0:01:09]}  Qg6 {[%clk 0:00:11]} 33. Bxg5+ {[%clk 0:01:00]}  Kh5 {[%clk 0:00:11]} 34. Bf7 {[%clk 0:01:00]}  Nc6 {[%clk 0:00:07]} 1-0


[Site "https://www.chess.com"]

[Event "Titled Tuesday Blitz May 9 Early 2023"]
[White "Ivic, Velimir"]
[Black "Abdilkhair, Abilmansur"]
[WhiteFideId "950122"]
[BlackFideId "13716417"]
[WhiteElo "2563"]
[BlackElo "2215"]
[Result "1-0"]
[Round "01"]
[TimeControl "180+2"]
[Date "2023.05.09"]
[WhiteClock "0:02:07"]
[BlackClock "0:00:08"]

1. e4 {[%clk 0:02:55]}  e6 {[%clk 0:02:49]} 2. d4 {[%clk 0:02:54]}  d5 {[%clk 0:02:48]} 3. Nc3 {[%clk 0:02:55]}  dxe4 {[%clk 0:02:46]} 4. Nxe4 {[%clk 0:02:56]}  Nd7 {[%clk 0:02:46]} 5. Nf3 {[%clk 0:02:55]}  Ngf6 {[%clk 0:02:46]} 6. Nxf6+ {[%clk 0:02:55]}  Nxf6 {[%clk 0:02:46]} 7. Be3 {[%clk 0:02:56]}  Be7 {[%clk 0:02:45]} 8. Bd3 {[%clk 0:02:56]}  O-O {[%clk 0:02:45]} 9. Qe2 {[%clk 0:02:57]}  b6 {[%clk 0:02:44]} 10. O-O-O {[%clk 0:02:57]}  Bb7 {[%clk 0:02:44]} 11. Kb1 {[%clk 0:02:56]}  a5 {[%clk 0:02:42]} 12. Ne5 {[%clk 0:02:48]}  Nd5 {[%clk 0:02:35]} 13. Bc1 {[%clk 0:02:47]}  c5 {[%clk 0:02:27]} 14. dxc5 {[%clk 0:02:45]}  bxc5 {[%clk 0:02:25]} 15. c4 {[%clk 0:02:45]}  Qc7 {[%clk 0:01:32]} 16. cxd5 {[%clk 0:02:43]}  Bxd5 {[%clk 0:01:33]} 17. Bc4 {[%clk 0:02:31]}  Rfd8 {[%clk 0:01:23]} 18. Bxd5 {[%clk 0:02:24]}  exd5 {[%clk 0:01:22]} 19. Rhe1 {[%clk 0:02:25]}  Bf6 {[%clk 0:01:20]} 20. f4 {[%clk 0:02:23]}  d4 {[%clk 0:01:20]} 21. Qc4 {[%clk 0:02:23]}  Rab8 {[%clk 0:01:16]} 22. Nd3 {[%clk 0:02:23]}  Be7 {[%clk 0:01:02]} 23. g4 {[%clk 0:02:22]}  Rb6 {[%clk 0:00:54]} 24. Re2 {[%clk 0:02:18]}  Bf8 {[%clk 0:00:42]} 25. Rde1 {[%clk 0:02:18]}  Rdb8 {[%clk 0:00:40]} 26. Re8 {[%clk 0:02:14]}  Qd7 {[%clk 0:00:35]} 27. Rxb8 {[%clk 0:02:10]}  Rxb8 {[%clk 0:00:36]} 28. f5 {[%clk 0:02:10]}  Qc6 {[%clk 0:00:34]} 29. Qxf7+ {[%clk 0:02:05]}  Kxf7 {[%clk 0:00:15]} 30. Ne5+ {[%clk 0:02:05]}  Kf6 {[%clk 0:00:16]} 31. Nxc6 {[%clk 0:02:06]}  Rb6 {[%clk 0:00:14]} 32. Re6+ {[%clk 0:02:06]}  Kf7 {[%clk 0:00:14]} 33. Ne5+ {[%clk 0:02:07]}  Kg8 {[%clk 0:00:14]} 34. Rxb6 {[%clk 0:02:08]}  h6 {[%clk 0:00:14]} 35. Ng6 {[%clk 0:02:07]}  c4 {[%clk 0:00:09]} 36. Rb8 {[%clk 0:02:06]}  Kf7 {[%clk 0:00:08]} 37. Rxf8# {[%clk 0:02:07]} 1-0


[Site "https://www.chess.com"]

[Event "Titled Tuesday Blitz May 9 Early 2023"]
[White "Salinas Herrera, Pablo"]
[Black "Liu, Casper"]
[WhiteFideId "3407128"]
[BlackFideId "1454153"]
[WhiteElo "2546"]
[BlackElo "2221"]
[Result "1-0"]
[Round "01"]
[TimeControl "180+2"]
[Date "2023.05.09"]
[WhiteClock "0:00:50"]
[BlackClock "0:00:10"]

1. e4 {[%clk 0:02:59]}  Nf6 {[%clk 0:02:55]} 2. e5 {[%clk 0:02:59]}  Nd5 {[%clk 0:02:56]} 3. d4 {[%clk 0:02:59]}  d6 {[%clk 0:02:56]} 4. Nf3 {[%clk 0:03:00]}  dxe5 {[%clk 0:02:55]} 5. Nxe5 {[%clk 0:03:01]}  c6 {[%clk 0:02:56]} 6. Bd3 {[%clk 0:02:58]}  g6 {[%clk 0:02:56]} 7. O-O {[%clk 0:02:58]}  Bg7 {[%clk 0:02:56]} 8. Re1 {[%clk 0:02:59]}  O-O {[%clk 0:02:56]} 9. c3 {[%clk 0:02:55]}  Nd7 {[%clk 0:02:57]} 10. Nf3 {[%clk 0:02:54]}  N7b6 {[%clk 0:02:56]} 11. h3 {[%clk 0:02:53]}  Re8 {[%clk 0:02:54]} 12. Bg5 {[%clk 0:02:53]}  h6 {[%clk 0:02:52]} 13. Bh4 {[%clk 0:02:52]}  Nf4 {[%clk 0:02:52]} 14. Bf1 {[%clk 0:02:52]}  Nbd5 {[%clk 0:02:37]} 15. Nbd2 {[%clk 0:02:51]}  Bf5 {[%clk 0:02:34]} 16. Nc4 {[%clk 0:02:49]}  Qd7 {[%clk 0:02:30]} 17. Nce5 {[%clk 0:02:47]}  Qc7 {[%clk 0:02:25]} 18. Bg3 {[%clk 0:02:47]}  f6 {[%clk 0:02:22]} 19. Nd3 {[%clk 0:02:21]}  g5 {[%clk 0:02:21]} 20. c4 {[%clk 0:02:14]}  Nb6 {[%clk 0:02:08]} 21. Nc5 {[%clk 0:02:06]}  Rad8 {[%clk 0:02:05]} 22. Qb3 {[%clk 0:02:05]}  e5 {[%clk 0:02:01]} 23. dxe5 {[%clk 0:02:04]}  fxe5 {[%clk 0:02:01]} 24. Ne4 {[%clk 0:02:01]}  Kh8 {[%clk 0:02:00]} 25. c5 {[%clk 0:01:57]}  Nbd5 {[%clk 0:01:52]} 26. Nd6 {[%clk 0:01:58]}  Rf8 {[%clk 0:01:46]} 27. Nxe5 {[%clk 0:01:57]}  Be6 {[%clk 0:01:42]} 28. Ng6+ {[%clk 0:01:52]}  Nxg6 {[%clk 0:01:36]} 29. Rxe6 {[%clk 0:01:52]}  Ngf4 {[%clk 0:01:34]} 30. Re4 {[%clk 0:01:50]}  b6 {[%clk 0:01:32]} 31. Rae1 {[%clk 0:01:31]}  bxc5 {[%clk 0:01:32]} 32. Ne8 {[%clk 0:01:31]}  Qf7 {[%clk 0:01:10]} 33. Nxg7 {[%clk 0:01:31]}  Qxg7 {[%clk 0:01:11]} 34. Qc2 {[%clk 0:01:28]}  Nb4 {[%clk 0:00:51]} 35. Qxc5 {[%clk 0:01:00]}  Nbd3 {[%clk 0:00:51]} 36. Bxd3 {[%clk 0:01:00]}  Nxd3 {[%clk 0:00:52]} 37. Qxc6 {[%clk 0:01:00]}  Rf6 {[%clk 0:00:19]} 38. Re8+ {[%clk 0:00:58]}  Rxe8 {[%clk 0:00:15]} 39. Rxe8+ {[%clk 0:00:59]}  Kh7 {[%clk 0:00:15]} 40. Qe4+ {[%clk 0:00:58]}  Qg6 {[%clk 0:00:16]} 41. Re7+ {[%clk 0:00:57]}  Kh8 {[%clk 0:00:16]} 42. Qa8+ {[%clk 0:00:49]}  Qg8 {[%clk 0:00:10]} 43. Re8 {[%clk 0:00:50]} 1-0


[Site "https://www.chess.com"]